[Event "WYCC U18 Open 2019"]
[Site "Mumbai"]
[Date "2019.10.04"]
[Round "4.1"]
[White "Iniyan, P."]
[Black "Gholami, Aryan"]
[Result "1/2-1/2"]
[ECO "B43"]
[WhiteElo "2509"]
[BlackElo "2554"]
[Annotator "ChessBase"]
[PlyCount "97"]
[EventDate "2019.10.02"]
[EventType "swiss"]
[EventCountry "IND"]
[SourceTitle "playchess.com"]
[Source "ChessBase"]
[SourceQuality "1"]
[TimeControl "40/5400+30:1800+30"]

1. e4 {[%emt 0:01:11]} c5 {[%emt 0:00:00]} 2. Nf3 {[%emt 0:00:04]} e6 {[%emt 0:00:00]} 3. d4 {[%emt 0:00:04]} cxd4 {[%emt 0:00:00]} 4. Nxd4 {[%emt 0:00:05]} a6 {[%emt 0:00:01]} 5. Nc3 {[%emt 0:00:06]} b5 {[%emt 0:00:49]} 6. Bd3 {[%emt 0:00:09]} Qb6 {[%emt 0:01:14]} 7. Nf3 {[%emt 0:00:05]} Qc7 {[%emt 0:02:41]} 8. O-O {[%emt 0:00:21]} Bb7 {[%emt 0:02:47]} 9. Re1 {[%emt 0:06:25]} Nf6 {[%emt 0:06:50]} 10. h3 {[%emt 0:10:09]} d6 {[%emt 0:07:01]} 11. Bd2 {[%emt 0:02:28]} Nbd7 {[%emt 0:04:51]} 12. a4 {[%emt 0:01:05]} b4 {[%emt 0:00:12]} 13. Na2 {[%emt 0:00:05]} Nc5 {[%emt 0:00:05]} 14. Bxb4 {[%emt 0:04:50]} Ncxe4 {[%emt 0:05:26]} 15. a5 {[%emt 0:06:27]} Be7 {[%emt 0:02:56]} 16. Bxe4 {[%emt 0:27:11]} Nxe4 {[%emt 0:03:58]} 17. Nc3 {[%emt 0:00:28]} Nxc3 {[%emt 0:07:46]} 18. Bxc3 {[%emt 0:00:46]} O-O {[%emt 0:00:07]} 19. Nd4 {[%emt 0:05:59]} Rfe8 {[%emt 0:11:25]} 20. f4 {[%emt 0:07:19]} e5 {[%emt 0:02:57]} 21. Nf5 {[%emt 0:01:38]} Bf8 {[%emt 0:00:07]} 22. Qg4 {[%emt 0:06:42]} g6 {[%emt 0:02:20]} 23. fxe5 {[%emt 0:03:35]} dxe5 {[%emt 0:00:55]} 24. Qg5 {[%emt 0:04:25]} Qc6 {[%emt 0:04:48]} 25. Re2 {[%emt 0:07:14]} f6 {[%emt 0:03:36]} 26. Nh6+ {[%emt 0:00:04]} Kh8 {[%emt 0:00:41]} 27. Qh4 {[%emt 0:00:04]} Qe6 28. Rf1 {[%emt 0:01:25]} Bg7 {[%emt 0:05:20]} 29. Rxe5 {[%emt 0:01:38]} Qc6 {[%emt 0:01:41]} 30. Rxe8+ {[%emt 0:00:06]} Rxe8 {[%emt 0:00:04]} 31. Rf2 {[%emt 0:00:14]} f5 {[%emt 0:06:06]} 32. Nf7+ {[%emt 0:01:20]} Kg8 {[%emt 0:00:02]} 33. Nh6+ {[%emt 0:00:01]} Kh8 {[%emt 0:00:07]} 34. Nf7+ {[%emt 0:01:54]} Kg8 {[%emt 0:00:02]} 35. Nd8 {[%emt 0:00:07]} Qe4 {[%emt 0:04:48]} 36. Qxe4 Bxe4 {[%emt 0:00:06]} 37. Bxg7 {[%emt 0:01:44]} Kxg7 {[%emt 0:02:18]} 38. Rd2 {[%emt 0:00:05]} Kf6 {[%emt 0:04:29]} 39. Rd7 {[%emt 0:00:07]} Bxc2 {[%emt 0:00:30]} 40. Nb7 {[%emt 0:00:04]} Re1+ {[%emt 0:04:46]} 41. Kf2 {[%emt 0:32:01]} Rb1 {[%emt 0:30:30]} 42. Rd2 {[%emt 0:00:00]} Rxb2 {[%emt 0:00:00]} 43. Nc5 {[%emt 0:00:00]} Ra2 {[%emt 0:00:00]} 44. Re2 {[%emt 0:00:00]} g5 {[%emt 0:00:00]} 45. g4 {[%emt 0:00:00]} Kg6 {[%emt 0:00:00]} 46. Re6+ {[%emt 0:00:00]} Kg7 {[%emt 0:00:00]} 47. Re7+ {[%emt 0:00:00]} Kf6 {[%emt 0:00:00]} 48. Re2 {[%emt 0:00:00]} fxg4 {[%emt 0:00:00]} 49. hxg4 {[%emt 0:00:00] Ke5} 1/2-1/2

[Event "WYCC U18 Open 2019"]
[Site "Mumbai"]
[Date "2019.10.04"]
[Round "4.2"]
[White "Praggnanandhaa R"]
[Black "Petriashvili, Nikoloz"]
[Result "1-0"]
[ECO "B30"]
[WhiteElo "2567"]
[BlackElo "2441"]
[Annotator "ChessBase"]
[PlyCount "79"]
[EventDate "2019.10.02"]
[EventType "swiss"]
[EventCountry "IND"]
[SourceTitle "playchess.com"]
[Source "ChessBase"]
[SourceQuality "1"]
[TimeControl "40/5400+30:1800+30"]

1. e4 {[%emt 0:00:00]} c5 {[%emt 0:00:00]} 2. Nf3 {[%emt 0:00:00]} Nc6 {[%emt 0:00:00]} 3. Bb5 {[%emt 0:00:07]} e6 {[%emt 0:04:48]} 4. O-O {[%emt 0:01:37]} Nge7 {[%emt 0:01:23]} 5. d4 {[%emt 0:00:50]} cxd4 {[%emt 0:07:34]} 6. Nxd4 {[%emt 0:00:22]} a6 {[%emt 0:05:09]} 7. Be2 {[%emt 0:03:08]} Nxd4 {[%emt 0:02:13]} 8. Qxd4 {[%emt 0:00:08]} Nc6 {[%emt 0:00:01]} 9. Qc3 {[%emt 0:02:27]} b5 {[%emt 0:01:19]} 10. Rd1 {[%emt 0:02:45]} Qc7 {[%emt 0:01:12]} 11. Bg5 {[%emt 0:23:56]} Bb7 {[%emt 0:02:40]} 12. Nd2 {[%emt 0:04:50]} h6 {[%emt 0:10:54]} 13. Bh4 {[%emt 0:01:19]} Rc8 {[%emt 0:11:22]} 14. a4 {[%emt 0:11:26]} b4 {[%emt 0:01:31]} 15. Qe3 {[%emt 0:02:39]} Bd6 {[%emt 0:05:04]} 16. Nc4 {[%emt 0:06:43]} Bxh2+ {[%emt 0:04:31]} 17. Kh1 {[%emt 0:00:23]} Bf4 {[%emt 0:23:41]} 18. Qc5 {[%emt 0:01:03]} d6 {[%emt 0:02:16]} 19. Nxd6+ {[%emt 0:02:24]} Bxd6 {[%emt 0:00:03]} 20. Rxd6 {[%emt 0:00:46]} O-O {[%emt 0:00:12]} 21. Bd3 {[%emt 0:08:38]} e5 {[%emt 0:03:13]} 22. Bg3 {[%emt 0:03:00]} Qe7 {[%emt 0:01:47]} 23. Rd5 {[%emt 0:00:53]} Rfe8 {[%emt 0:03:49]} 24. a5 {[%emt 0:04:33]} f6 {[%emt 0:01:38]} 25. Qxe7 {[%emt 0:02:35]} Rxe7 {[%emt 0:00:01]} 26. Rc5 {[%emt 0:00:43]} Nd4 {[%emt 0:01:38]} 27. Rxc8+ {[%emt 0:00:17]} Bxc8 {[%emt 0:00:02]} 28. Ra4 {[%emt 0:01:23]} Nc6 {[%emt 0:00:01]} 29. f3 {[%emt 0:00:24]} Kh7 {[%emt 0:01:53]} 30. b3 {[%emt 0:01:58]} Re8 {[%emt 0:01:26]} 31. Be1 {[%emt 0:02:51]} Rd8 {[%emt 0:00:02]} 32. Kg1 {[%emt 0:00:26]} Be6 {[%emt 0:00:45]} 33. Bxa6 {[%emt 0:02:32]} Nd4 {[%emt 0:00:05]} 34. Ra2 {[%emt 0:00:47]} Rb8 {[%emt 0:00:43]} 35. Bd3 {[%emt 0:00:30]} Nc6 {[%emt 0:01:02]} 36. a6 {[%emt 0:00:21]} Ra8 {[%emt 0:00:09]} 37. Bf2 {[%emt 0:00:59]} Bc8 {[%emt 0:00:03]} 38. Ra4 {[%emt 0:00:55]} Bd7 {[%emt 0:00:32]} 39. Bb5 {[%emt 0:00:41]} Be8 {[%emt 0:00:03]} 40. a7 {[%emt 0:00:21]} 1-0

[Event "WYCC U18 Open 2019"]
[Site "Mumbai"]
[Date "2019.10.04"]
[Round "4.3"]
[White "Buckels, Valentin"]
[Black "Sargsyan, Shant"]
[Result "1/2-1/2"]
[ECO "A49"]
[WhiteElo "2442"]
[BlackElo "2580"]
[Annotator "ChessBase"]
[PlyCount "52"]
[EventDate "2019.10.02"]
[EventType "swiss"]
[EventCountry "IND"]
[SourceTitle "playchess.com"]
[Source "ChessBase"]
[SourceQuality "1"]
[TimeControl "40/5400+30:1800+30"]

1. Nf3 {[%emt 0:00:00]} Nf6 {[%emt 0:00:54]} 2. d4 {[%emt 0:01:26]} g6 {[%emt 0:00:10]} 3. g3 {[%emt 0:00:19]} Bg7 {[%emt 0:00:35]} 4. Bg2 {[%emt 0:00:21]} d6 {[%emt 0:00:40]} 5. c4 {[%emt 0:01:52]} O-O {[%emt 0:00:26]} 6. O-O {[%emt 0:00:10]} Ne4 {[%emt 0:00:16]} 7. Nbd2 {[%emt 0:08:21]} Nxd2 {[%emt 0:00:47]} 8. Qxd2 {[%emt 0:01:21]} e5 {[%emt 0:05:44]} 9. dxe5 {[%emt 0:08:52]} dxe5 {[%emt 0:00:16]} 10. Qxd8 {[%emt 0:01:23]} Rxd8 {[%emt 0:00:01]} 11. Bg5 {[%emt 0:00:33]} f6 {[%emt 0:03:07]} 12. Rad1 {[%emt 0:02:56]} Re8 {[%emt 0:01:22]} 13. Be3 {[%emt 0:02:22]} f5 {[%emt 0:04:22]} 14. Ne1 {[%emt 0:11:48]} c6 {[%emt 0:06:48]} 15. Bc5 {[%emt 0:04:49]} a5 {[%emt 0:05:13]} 16. Bd6 {[%emt 0:02:54]} e4 {[%emt 0:02:45]} 17. b3 {[%emt 0:03:31]} Be6 {[%emt 0:02:21]} 18. f3 {[%emt 0:03:31]} Nd7 {[%emt 0:05:58]} 19. fxe4 {[%emt 0:13:01]} fxe4 {[%emt 0:00:06]} 20. Rf4 {[%emt 0:01:39]} Nf6 {[%emt 0:01:55]} 21. Nc2 {[%emt 0:03:31]} Rad8 {[%emt 0:01:56]} 22. Rff1 {[%emt 0:04:16]} Bg4 {[%emt 0:01:31]} 23. Rfe1 {[%emt 0:01:04]} e3 {[%emt 0:05:09]} 24. Bf4 {[%emt 0:07:34]} Rxd1 {[%emt 0:01:35]} 25. Rxd1 {[%emt 0:00:02]} Bxe2 {[%emt 0:00:20]} 26. Rd6 {[%emt 0:00:27]} Ng4 {[%emt 0:17:57]} 1/2-1/2

[Event "WYCC U18 Open 2019"]
[Site "Mumbai"]
[Date "2019.10.04"]
[Round "4.4"]
[White "Gumularz, Szymon"]
[Black "Mitrabha, Guha"]
[Result "1/2-1/2"]
[ECO "B12"]
[WhiteElo "2505"]
[BlackElo "2434"]
[Annotator "ChessBase"]
[PlyCount "61"]
[EventDate "2019.10.02"]
[EventType "swiss"]
[EventCountry "IND"]
[SourceTitle "playchess.com"]
[Source "ChessBase"]
[SourceQuality "1"]
[TimeControl "40/5400+30:1800+30"]

1. e4 {[%emt 0:00:00]} c6 {[%emt 0:05:40]} 2. d4 {[%emt 0:00:00]} d5 {[%emt 0:00:06]} 3. e5 {[%emt 0:00:00]} Bf5 {[%emt 0:00:06]} 4. Nf3 {[%emt 0:00:00]} e6 {[%emt 0:00:15]} 5. Be2 {[%emt 0:00:00]} c5 {[%emt 0:00:05]} 6. Be3 {[%emt 0:00:23]} cxd4 {[%emt 0:00:07]} 7. Nxd4 {[%emt 0:00:03]} Ne7 {[%emt 0:00:04]} 8. O-O {[%emt 0:02:31]} Nbc6 {[%emt 0:00:05]} 9. Bb5 {[%emt 0:00:06]} a6 {[%emt 0:00:05]} 10. Bxc6+ {[%emt 0:00:12]} bxc6 {[%emt 0:00:02]} 11. c4 {[%emt 0:01:10]} Qd7 {[%emt 0:00:07]} 12. Nc3 {[%emt 0:00:05]} dxc4 {[%emt 0:00:04]} 13. Na4 {[%emt 0:00:24]} Nd5 {[%emt 0:00:03]} 14. Nxf5 {[%emt 0:00:08]} exf5 15. Rc1 {[%emt 0:00:07]} c3 {[%emt 0:00:06]} 16. Qc2 {[%emt 0:00:36]} cxb2 {[%emt 0:00:04]} 17. Qxb2 {[%emt 0:00:40]} Be7 {[%emt 0:00:02]} 18. e6 {[%emt 0:04:50]} fxe6 {[%emt 0:00:02]} 19. Qxg7 {[%emt 0:00:27]} Bf6 {[%emt 0:00:02]} 20. Qh6 {[%emt 0:03:23]} Bg7 {[%emt 0:00:02]} 21. Qh5+ {[%emt 0:08:32]} Qf7 {[%emt 0:00:02]} 22. Qf3 {[%emt 0:02:20]} O-O {[%emt 0:00:04]} 23. Nb6 {[%emt 0:08:36]} Rad8 {[%emt 0:05:27]} 24. Rxc6 {[%emt 0:01:00]} Nxe3 {[%emt 0:01:25]} 25. Qxe3 {[%emt 0:05:37]} e5 {[%emt 0:08:05]} 26. Nc4 {[%emt 0:08:41]} f4 {[%emt 0:07:30]} 27. Qe2 {[%emt 0:09:50]} Rd4 {[%emt 0:13:08]} 28. Rd1 {[%emt 0:10:28]} f3 {[%emt 0:10:52]} 29. gxf3 {[%emt 0:03:49]} Rxd1+ {[%emt 0:01:44]} 30. Qxd1 {[%emt 0:00:04]} e4 {[%emt 0:00:27]} 31. Ne3 {[%emt 0:07:56]} 1/2-1/2

[Event "WYCC U18 Open 2019"]
[Site "Mumbai"]
[Date "2019.10.04"]
[Round "4.5"]
[White "Zarubitski, Viachaslau"]
[Black "Pultinevicius, Paulius"]
[Result "1-0"]
[ECO "C60"]
[WhiteElo "2435"]
[BlackElo "2503"]
[Annotator "ChessBase"]
[PlyCount "49"]
[EventDate "2019.10.02"]
[EventType "swiss"]
[EventCountry "IND"]
[SourceTitle "playchess.com"]
[Source "ChessBase"]
[SourceQuality "1"]
[TimeControl "40/5400+30:1800+30"]

1. e4 {[%emt 0:00:00]} e5 {[%emt 0:00:27]} 2. Nf3 {[%emt 0:00:00]} Nc6 {[%emt 0:00:04]} 3. Bb5 {[%emt 0:00:03]} g6 {[%emt 0:00:54]} 4. O-O {[%emt 0:02:24]} Bg7 {[%emt 0:02:34]} 5. c3 {[%emt 0:01:53]} a6 {[%emt 0:00:29]} 6. Ba4 {[%emt 0:00:27]} Nge7 {[%emt 0:00:18]} 7. d4 {[%emt 0:00:55]} b5 {[%emt 0:02:56]} 8. Bb3 {[%emt 0:01:51]} exd4 {[%emt 0:00:09]} 9. cxd4 {[%emt 0:03:03]} O-O {[%emt 0:02:21]} 10. h3 {[%emt 0:06:47]} d6 {[%emt 0:01:57]} 11. Nc3 {[%emt 0:02:37]} h6 {[%emt 0:07:07]} 12. d5 {[%emt 0:15:15]} Na5 {[%emt 0:00:37]} 13. Bc2 {[%emt 0:00:24]} c6 {[%emt 0:05:07]} 14. Rb1 {[%emt 0:19:09]} Re8 {[%emt 0:27:39]} 15. dxc6 {[%emt 0:05:04]} Nexc6 {[%emt 0:08:38]} 16. Nd5 {[%emt 0:00:19]} Nc4 {[%emt 0:10:16]} 17. b3 {[%emt 0:04:58]} N4e5 {[%emt 0:00:05]} 18. Be3 {[%emt 0:00:44]} Nxf3+ {[%emt 0:01:12]} 19. Qxf3 {[%emt 0:00:25]} Nd4 {[%emt 0:01:45]} 20. Qd1 {[%emt 0:00:09]} Nxc2 {[%emt 0:00:20]} 21. Qxc2 {[%emt 0:01:27]} Bb7 {[%emt 0:00:53]} 22. Qd3 {[%emt 0:07:56]} Qa5 {[%emt 0:01:00]} 23. Rbc1 {[%emt 0:07:10]} Qxa2 {[%emt 0:04:36]} 24. Rc7 {[%emt 0:00:10]} Bc8 {[%emt 0:04:54]} 25. Bd4 {[%emt 0:06:34]} 1-0

[Event "WYCC U18 Open 2019"]
[Site "Mumbai"]
[Date "2019.10.04"]
[Round "4.6"]
[White "Arjun Kalyan"]
[Black "Davtyan, Artur"]
[Result "1-0"]
[ECO "C50"]
[WhiteElo "2483"]
[BlackElo "2418"]
[Annotator "ChessBase"]
[PlyCount "91"]
[EventDate "2019.10.02"]
[EventType "swiss"]
[EventCountry "IND"]
[SourceTitle "playchess.com"]
[Source "ChessBase"]
[SourceQuality "1"]
[TimeControl "40/5400+30:1800+30"]

1. e4 {[%emt 0:00:00]} e5 {[%emt 0:00:00]} 2. Nf3 {[%emt 0:00:00]} Nc6 {[%emt 0:00:59]} 3. Bc4 {[%emt 0:00:00]} Bc5 {[%emt 0:00:51]} 4. O-O {[%emt 0:00:05]} Nf6 {[%emt 0:00:05]} 5. d3 {[%emt 0:00:04]} O-O {[%emt 0:00:44]} 6. Bg5 {[%emt 0:01:36]} h6 {[%emt 0:00:54]} 7. Bh4 {[%emt 0:00:06]} Be7 {[%emt 0:00:09]} 8. Bg3 {[%emt 0:00:26]} d6 {[%emt 0:00:08]} 9. a4 {[%emt 0:00:08]} Bg4 {[%emt 0:05:39]} 10. h3 {[%emt 0:02:40]} Bh5 {[%emt 0:07:00]} 11. c3 {[%emt 0:00:09]} Nh7 {[%emt 0:00:43]} 12. Nbd2 {[%emt 0:01:00]} Ng5 {[%emt 0:00:43]} 13. Qe2 {[%emt 0:00:54]} a5 {[%emt 0:00:54]} 14. Qe3 {[%emt 0:05:30]} Qd7 {[%emt 0:18:12]} 15. Nxg5 {[%emt 0:12:48]} hxg5 {[%emt 0:01:41]} 16. f3 {[%emt 0:07:54]} Bf6 {[%emt 0:00:29]} 17. Bf2 {[%emt 0:01:50]} Ne7 {[%emt 0:01:10]} 18. Rfd1 {[%emt 0:08:33]} Rfe8 {[%emt 0:17:24]} 19. Nf1 {[%emt 0:04:03]} d5 {[%emt 0:05:25]} 20. Bb3 {[%emt 0:00:18]} Bg6 {[%emt 0:01:17]} 21. Nh2 {[%emt 0:06:42]} Bh5 {[%emt 0:12:38]} 22. Ng4 {[%emt 0:01:40]} Bxg4 {[%emt 0:00:02]} 23. fxg4 {[%emt 0:06:39]} Rad8 {[%emt 0:01:30]} 24. Qf3 {[%emt 0:01:21]} Qc6 {[%emt 0:03:58]} 25. g3 {[%emt 0:01:28]} Rd6 {[%emt 0:08:53]} 26. h4 {[%emt 0:06:21]} gxh4 {[%emt 0:01:07]} 27. Rf1 {[%emt 0:18:29]} dxe4 {[%emt 0:00:57]} 28. dxe4 {[%emt 0:00:23]} hxg3 {[%emt 0:00:14]} 29. Be3 {[%emt 0:00:47]} Ng6 {[%emt 0:05:01]} 30. g5 {[%emt 0:03:54]} Nf4 {[%emt 0:00:04]} 31. Bd5 {[%emt 0:04:53]} Qd7 {[%emt 0:00:01]} 32. Bxf4 {[%emt 0:01:03]} exf4 {[%emt 0:00:01]} 33. gxf6 {[%emt 0:00:05]} Rxf6 {[%emt 0:03:12]} 34. Kg2 {[%emt 0:02:21]} c6 {[%emt 0:00:24]} 35. Bc4 {[%emt 0:00:21]} Rh6 {[%emt 0:00:46]} 36. Rh1 {[%emt 0:00:24]} Qd2+ {[%emt 0:00:01]} 37. Be2 {[%emt 0:01:24]} Rxe4 {[%emt 0:01:38]} 38. Qxe4 {[%emt 0:00:24]} Re6 {[%emt 0:00:50]} 39. Rad1 {[%emt 0:01:37]} Qxe2+ {[%emt 0:01:21]} 40. Qxe2 {[%emt 0:00:01]} Rxe2+ {[%emt 0:00:05]} 41. Kf3 {[%emt 0:31:20]} Rf2+ {[%emt 0:30:03]} 42. Kg4 {[%emt 0:00:00]} g6 {[%emt 0:00:00]} 43. Rhg1 {[%emt 0:00:00]} c5 {[%emt 0:00:00]} 44. Rd3 {[%emt 0:00:00]} f5+ {[%emt 0:00:00]} 45. Kg5 {[%emt 0:00:00]} Kf7 {[%emt 0:00:00]} 46. Re1 {[%emt 0:00:00]} 1-0

[Event "WYCC U18 Open 2019"]
[Site "Mumbai"]
[Date "2019.10.04"]
[Round "4.7"]
[White "Mendonca, Leon Luke"]
[Black "Garidmagnai, Byambasuren"]
[Result "1/2-1/2"]
[ECO "A05"]
[WhiteElo "2388"]
[BlackElo "2327"]
[Annotator "NA"]
[PlyCount "125"]
[EventDate "2019.10.02"]
[EventType "swiss"]
[EventCountry "IND"]
[SourceTitle "playchess.com"]
[Source "ChessBase"]
[SourceQuality "1"]
[TimeControl "40/5400+30:1800+30"]

1. Nf3 Nf6 2. b3 d6 3. d4 g6 4. Bb2 Bg7 5. e3 O-O 6. Be2 b6 7. O-O Bb7 8. c4 Nbd7 9. Nc3 Ne4 10. Nxe4 Bxe4 11. Qd2 e5 12. Rad1 Qe7 13. Bc3 a5 14. dxe5 Nxe5 15. Nd4 Rae8 16. Nb5 f5 17. Ba1 Bb7 18. Nc3 Nd7 19. Nd5 Bxd5 20. Qxd5+ Qf7 21. Qxf7+ Kxf7 22. Bf3 Bxa1 23. Rxa1 Ne5 24. Bd5+ Kf6 25. g3 g5 26. Rfd1 h5 27. Rd4 Ng6 28. a3 f4 29. exf4 gxf4 30. b4 axb4 31. axb4 h4 32. Kg2 Kf5 33. Ra7 Re2 34. Bf3 Re7 35. c5 dxc5 36. bxc5 bxc5 37. Rc4 Rg8 38. Rxc5+ Ne5 39. Ra4 fxg3 40. hxg3 hxg3 41. fxg3 Rd8 42. Ra2 Rd4 43. Re2 Kf6 44. Ba8 Ra4 45. Be4 Rc4 46. Ra5 Rd4 47. Bc2 c6 48. Ra1 Kg7 49. Rae1 Rd5 50. Bb1 c5 51. Rc1 Red7 52. Kh3 c4 53. Rc3 Rc5 54. Rce3 Nf7 55. Rc3 Rd4 56. Kg2 Rcd5 57. Ba2 Ne5 58. Rce3 Kf6 59. Rf2+ Kg5 60. Rfe2 Kf6 61. Rf2+ Kg5 62. Rfe2 Kf6 63. Rf2+ 1/2-1/2

[Event "WYCC U18 Open 2019"]
[Site "Mumbai"]
[Date "2019.10.04"]
[Round "4.8"]
[White "Aditya Mittal"]
[Black "Rahul Srivatshav P"]
[Result "1-0"]
[ECO "E73"]
[WhiteElo "2430"]
[BlackElo "2460"]
[Annotator "ChessBase"]
[PlyCount "132"]
[EventDate "2019.10.02"]
[EventType "swiss"]
[EventCountry "IND"]
[SourceTitle "playchess.com"]
[Source "ChessBase"]
[SourceQuality "1"]
[TimeControl "40/5400+30:1800+30"]

1. d4 {[%emt 0:00:00]} Nf6 {[%emt 0:00:37]} 2. c4 {[%emt 0:00:04]} g6 {[%emt 0:00:05]} 3. Nc3 {[%emt 0:00:07]} Bg7 {[%emt 0:00:03]} 4. e4 {[%emt 0:00:10]} d6 {[%emt 0:00:04]} 5. Be2 {[%emt 0:00:07]} O-O {[%emt 0:00:06]} 6. Be3 {[%emt 0:00:06]} c5 {[%emt 0:00:07]} 7. dxc5 {[%emt 0:00:19]} Qa5 {[%emt 0:00:13]} 8. Bd2 {[%emt 0:00:07]} Qxc5 {[%emt 0:00:09]} 9. Nf3 {[%emt 0:00:10]} Qc7 {[%emt 0:08:13]} 10. O-O {[%emt 0:07:27]} b6 {[%emt 0:05:50]} 11. h3 {[%emt 0:20:13]} Bb7 {[%emt 0:00:20]} 12. Bd3 {[%emt 0:00:08]} Nbd7 {[%emt 0:01:40]} 13. Qe2 {[%emt 0:00:29]} Rac8 {[%emt 0:02:53]} 14. Rac1 {[%emt 0:01:11]} Qb8 {[%emt 0:02:38]} 15. b4 {[%emt 0:02:30]} e6 {[%emt 0:12:46]} 16. Bf4 {[%emt 0:03:31]} Nh5 {[%emt 0:03:55]} 17. Be3 {[%emt 0:02:54]} f5 {[%emt 0:12:39]} 18. exf5 {[%emt 0:05:13]} exf5 {[%emt 0:00:42]} 19. Nd5 {[%emt 0:02:00]} Rce8 {[%emt 0:00:41]} 20. Qd1 {[%emt 0:03:18]} Kh8 {[%emt 0:13:39]} 21. Re1 {[%emt 0:02:01]} Nhf6 {[%emt 0:02:39]} 22. Nxf6 {[%emt 0:05:46]} Bxf6 {[%emt 0:00:05]} 23. Bf1 {[%emt 0:04:05]} Bg7 {[%emt 0:07:34]} 24. Bd4 {[%emt 0:03:16]} Ne5 {[%emt 0:00:06]} 25. Nd2 {[%emt 0:00:33]} Qd8 {[%emt 0:06:51]} 26. Ba1 {[%emt 0:12:19]} g5 {[%emt 0:01:30]} 27. c5 {[%emt 0:05:02]} dxc5 {[%emt 0:02:02]} 28. bxc5 {[%emt 0:00:15]} Bd5 {[%emt 0:03:17]} 29. Nc4 {[%emt 0:02:46]} Bxc4 {[%emt 0:02:06]} 30. Qxd8 {[%emt 0:00:42]} Rxd8 {[%emt 0:00:04]} 31. Bxe5 {[%emt 0:00:23]} Bxf1 {[%emt 0:02:15]} 32. Kxf1 {[%emt 0:01:42]} bxc5 {[%emt 0:00:14]} 33. Rxc5 {[%emt 0:01:04]} Rf7 {[%emt 0:01:36]} 34. g3 {[%emt 0:01:57]} h6 {[%emt 0:00:54]} 35. Rc6 Bxe5 {[%emt 0:05:36]} 36. Rxe5 {[%emt 0:03:31]} Kg7 {[%emt 0:00:04]} 37. Ree6 {[%emt 0:00:34]} f4 {[%emt 0:00:03]} 38. gxf4 {[%emt 0:00:56]} Rd2 {[%emt 0:00:16]} 39. Rg6+ {[%emt 0:02:56]} Kf8 {[%emt 0:00:22]} 40. Rc8+ {[%emt 0:01:39]} Ke7 {[%emt 0:00:04]} 41. Rc7+ Kf8 {[%emt 0:30:54]} 42. Rc8+ {[%emt 0:30:27]} Ke7 {[%emt 0:00:05]} 43. Rc7+ {[%emt 0:00:01]} Kf8 {[%emt 0:00:06]} 44. Rxf7+ Kxf7 {[%emt 0:00:07]} 45. Rxh6 {[%emt 0:02:00]} gxf4 {[%emt 0:00:10]} 46. Rh7+ {[%emt 0:00:10]} Kg6 {[%emt 0:00:07]} 47. Rxa7 {[%emt 0:00:03]} f3 {[%emt 0:00:03]} 48. Kg1 {[%emt 0:00:08]} Kg5 {[%emt 0:00:00]} 49. Ra4 {[%emt 0:00:00]} Rc2 {[%emt 0:00:00]} 50. a3 {[%emt 0:00:00]} Ra2 {[%emt 0:00:00]} 51. Kh2 {[%emt 0:00:00]} Rxf2+ {[%emt 0:00:00]} 52. Kg3 {[%emt 0:00:00]} Rc2 {[%emt 0:00:00]} 53. h4+ {[%emt 0:00:00]} Kh5 {[%emt 0:00:00]} 54. Kxf3 {[%emt 0:00:00]} Rc3+ {[%emt 0:00:00]} 55. Ke2 {[%emt 0:00:00]} Rh3 {[%emt 0:00:00]} 56. Kd2 {[%emt 0:00:00]} Kg6 {[%emt 0:00:00]} 57. Kc2 {[%emt 0:00:00]} Rh2+ {[%emt 0:00:00]} 58. Kb3 {[%emt 0:00:00]} Rh3+ {[%emt 0:00:00]} 59. Kb4 {[%emt 0:02:54]} Rxh4+ {[%emt 0:00:00]} 60. Kb5 {[%emt 0:00:01]} Rh5+ {[%emt 0:00:00]} 61. Kc6 {[%emt 0:04:25]} Rh3 {[%emt 0:00:00]} 62. Ra6 {[%emt 0:00:25]} Kf7 {[%emt 0:00:00]} 63. a4 {[%emt 0:00:32]} Ke7 {[%emt 0:01:42]} 64. a5 {[%emt 0:03:26]} Rc3+ {[%emt 0:00:24]} 65. Kb7 {[%emt 0:00:34]} Kd7 {[%emt 0:00:07]} 66. Rf6 {[%emt 0:00:04]} Rc6 {[%emt 0:00:56]} 1-0

[Event "WYCC U18 Open 2019"]
[Site "Mumbai"]
[Date "2019.10.04"]
[Round "4.9"]
[White "Gazik, Viktor"]
[Black "Aliyev, Ravan"]
[Result "1-0"]
[ECO "E62"]
[WhiteElo "2546"]
[BlackElo "2341"]
[Annotator "ChessBase"]
[PlyCount "69"]
[EventDate "2019.10.02"]
[EventType "swiss"]
[EventCountry "IND"]
[SourceTitle "playchess.com"]
[Source "ChessBase"]
[SourceQuality "1"]
[TimeControl "40/5400+30:1800+30"]

1. d4 {[%emt 0:00:00]} Nf6 {[%emt 0:03:15]} 2. Nf3 {[%emt 0:00:00]} g6 {[%emt 0:00:09]} 3. g3 {[%emt 0:00:00]} Bg7 {[%emt 0:00:05]} 4. Bg2 {[%emt 0:00:00]} O-O {[%emt 0:00:28]} 5. c4 {[%emt 0:00:00]} d6 {[%emt 0:02:23]} 6. O-O {[%emt 0:00:02]} c6 {[%emt 0:00:05]} 7. Nc3 {[%emt 0:04:22]} Bf5 {[%emt 0:00:12]} 8. Re1 {[%emt 0:02:12]} Ne4 {[%emt 0:08:26]} 9. Qb3 {[%emt 0:00:38]} Nxc3 {[%emt 0:06:23]} 10. bxc3 {[%emt 0:03:54]} b6 {[%emt 0:13:58]} 11. e4 {[%emt 0:07:12]} Bg4 {[%emt 0:03:44]} 12. e5 {[%emt 0:14:23]} Bxf3 {[%emt 0:16:37]} 13. exd6 {[%emt 0:01:14]} e5 {[%emt 0:01:14]} 14. Bxf3 {[%emt 0:00:46]} exd4 {[%emt 0:00:01]} 15. cxd4 {[%emt 0:20:30]} Bxd4 {[%emt 0:03:54]} 16. Bb2 {[%emt 0:00:50]} Bxb2 {[%emt 0:07:30]} 17. Qxb2 {[%emt 0:00:10]} Qxd6 {[%emt 0:05:50]} 18. Rad1 {[%emt 0:01:07]} Qc7 {[%emt 0:00:05]} 19. Qf6 {[%emt 0:00:57]} Qc8 {[%emt 0:00:48]} 20. g4 {[%emt 0:11:04]} a5 {[%emt 0:02:16]} 21. h4 {[%emt 0:05:43]} Ra7 {[%emt 0:08:12]} 22. h5 {[%emt 0:02:43]} h6 {[%emt 0:00:01]} 23. Rd6 {[%emt 0:02:08]} Rd7 {[%emt 0:02:06]} 24. hxg6 {[%emt 0:00:46]} fxg6 {[%emt 0:00:02]} 25. Qxg6+ {[%emt 0:00:09]} Rg7 {[%emt 0:00:51]} 26. Qh5 {[%emt 0:01:51]} Qf5 {[%emt 0:04:44]} 27. Qxf5 {[%emt 0:04:14]} Rxf5 {[%emt 0:00:02]} 28. Kg2 {[%emt 0:05:00]} Rf8 {[%emt 0:00:42]} 29. Rxh6 {[%emt 0:00:05]} Rgf7 {[%emt 0:02:58]} 30. Rg6+ {[%emt 0:01:26]} Kh7 {[%emt 0:01:21]} 31. Be4 {[%emt 0:00:19]} Rxf2+ {[%emt 0:00:05]} 32. Kg3 {[%emt 0:00:28]} R2f3+ {[%emt 0:00:01]} 33. Kh4 {[%emt 0:00:18]} R3f7 {[%emt 0:02:48]} 34. Rg5+ {[%emt 0:06:46]} Kh6 {[%emt 0:01:28]} 35. Rh1 {[%emt 0:00:52]} 1-0